[Event "RUDAR VI-GM 2024"]
[Site "Pozarevac"]
[Date "2024.02.12"]
[Round "4.5"]
[White "Zemlyanskii, Ivan"]
[Black "Grover, Sahaj"]
[Result "1-0"]
[ECO "E11"]
[WhiteElo "2492"]
[BlackElo "2503"]
[Annotator "TA"]
[PlyCount "77"]
[EventDate "2024.02.12"]
[EventType "tourn"]
[EventCountry "SRB"]
[SourceTitle "playchess.com"]
[Source "ChessBase"]
[SourceQuality "1"]
[TimeControl "5400+30"]

{[%evp 10,77,28,26,22,31,23,14,58,46,50,47,56,54,60,11,49,45,57,33,41,40,31,46,36,34,33,44,43,37,45,19,41,43,52,45,55,52,42,34,114,125,223,237,222,237,232,230,260,274,276,251,317,259,248,0,0,0,0,0,0,0,470,449,456,449,520,487,840,829]} 1. d4 {[%emt 0:00:02]} Nf6 {[%emt 0:07:28]} 2. c4 {[%emt 0:00:05]} e6 {[%emt 0:00:03]} 3. Nf3 {[%emt 0:00:03]} Bb4+ {[%emt 0:00:04]} 4. Bd2 {[%emt 0:00:04]} Qe7 {[%emt 0:00:06]} 5. g3 {[%emt 0:00:03]} Bxd2+ {[%emt 0:00:08]} 6. Qxd2 {[%emt 0:00:16]} Nc6 {[%emt 0:00:09]} 7. b3 {[%emt 0:00:13]} d5 {[%emt 0:11:34]} 8. Bg2 {[%emt 0:00:06]} Ne4 {[%emt 0:03:03] The position is equal.} 9. Qb2 {[%emt 0:00:05]} a5 {[%emt 0:06:47][%cal Ba7a5,Ba5a4,Ba4a3][%mdl 32]} 10. Nfd2 {[%emt 1:34:33]} Nf6 {[%emt 0:18:52]} 11. O-O {[%emt 0:00:00]} a4 {[%emt 0:04:05]} 12. e3 {[%emt 0:01:00]} (12. bxa4 $14 O-O 13. e3) 12... a3 {[%emt 0:02:40]} 13. Qc1 {[%emt 0:00:00]} O-O {[%emt 0:00:14]} 14. Nc3 {[%emt 0:00:00]} Rd8 {[%emt 0:03:38]} 15. Rd1 {[%emt 0:00:00]} Nb4 {[%emt 0:39:09]} 16. Ndb1 {[%emt 0:00:00][%cal Bd2b1,Bb1a3,Ba3b5][%mdl 32]} dxc4 {[%emt 0:00:30]} 17. bxc4 {[%emt 0:00:00]} e5 {[%emt 0:00:00]} 18. Nxa3 {[%emt 0:00:00]} Bf5 {[%emt 0:00:00] Prevents Nc2.} 19. Bf1 {[%emt 0:00:00] Dodges Nd3} h5 {[%emt 0:00:00]} 20. c5 {[%emt 0:00:00]} h4 {[%emt 0:00:00]} 21. Qb2 {[%emt 0:04:30]} exd4 {[%emt 0:00:00]} 22. exd4 {[%emt 0:00:00]} Nc6 {[%emt 0:00:00]} 23. Nab5 {[%emt 0:00:00]} Bg4 {[%emt 0:00:00]} 24. Rd3 {[%emt 0:00:00]} h3 {[%emt 0:00:00]} (24... hxg3 $14 25. hxg3 Qd7) 25. Re3 $16 {[%emt 0:00:00]} Qd7 {[%emt 0:00:00] [#]} (25... Qf8 $16) 26. d5 $1 $18 {[%emt 0:00:00][%mdl 512]} Ne7 {[%emt 0:00:00]} 27. d6 {[%emt 0:00:00]} cxd6 {[%emt 0:00:00]} 28. cxd6 {[%emt 0:00:00]} (28. Nxd6 Nf5 29. Rd3 Nxd6 $14) 28... Nf5 {[%emt 0:00:00]} 29. Rd3 {[%emt 0:00:00]} Qc6 {[%emt 0:00:00]} 30. Qb4 {[%emt 0:00:00]} Rd7 {[%emt 0:00:00]} 31. Qf4 {[%emt 0:00:00]} ({Less strong is} 31. Nd5 Be2 32. Nxf6+ (32. Bxe2 Nxd5 33. Qg4 Nb6 $14) 32... gxf6 $14) 31... Rad8 {[%emt 0:04:03][%cal Rf5d6] [#]} 32. f3 $2 {[%emt 0:00:00]} ({But not} 32. Nd5 $6 Nxd5 33. Qxg4 Nxd6 $16) (32. Rc1 $1 $18) 32... Qb6+ $11 {[%emt 0:02:36]} 33. Kh1 {[%emt 0:00:00] Dancing on a razor blade.} Nxd6 {[%emt 0:00:23]} 34. fxg4 {[%emt 0:00:00][%cal Oa1c1] Threatens to win with Rc1!} Nxb5 {[%emt 0:01:01]} 35. Rxd7 {[%emt 0:00:00]} Nxc3 {[%emt 0:00:51][%mdl 8192]} (35... Rxd7 $11 {and Black stays safe.} 36. Bxb5 (36. Nxb5 Nxg4 37. Qxg4 Qc6+ 38. Kg1 Qc5+ 39. Kh1 Qd5+ 40. Kg1 Qc5+ 41. Kh1 Qc6+ 42. Kg1 Qb6+ 43. Kh1 Qc6+ $11) 36... Rc7) 36. Rxd8+ $18 {[%emt 0:00:00] White is clearly winning.} Qxd8 {[%emt 0:00:03]} 37. Bxh3 {[%emt 0:00:00]} Nfe4 {[%emt 0:00:59][%cal Oc3d1]} 38. Bg2 {[%emt 0:00:00]} Nd2 {[%emt 0:00:12]} (38... g5 $142 39. Qf5 Qe7) 39. Re1 {[%emt 0:00:00] Weighted Error Value: White=0.16 (very precise) /Black=0.32.  Loses game:     	---       	Black=1      Missed win:     	White=1     	---        Mistake:       	White=1     	Black=3      Inaccurate:     	White=1     	Black=2      OK:         	White=21    	Black=11     Best:        	White=1     	Black=4      Brilliant:      	White=1     	---} 1-0

[Event "RUDAR VI-GM 2024"]
[Site "Pozarevac"]
[Date "2024.02.12"]
[Round "5.1"]
[White "Grover, Sahaj"]
[Black "Krishna Teja, N."]
[Result "1-0"]
[ECO "C64"]
[WhiteElo "2503"]
[BlackElo "2349"]
[Annotator "TA"]
[PlyCount "53"]
[EventDate "2024.02.12"]
[EventType "tourn"]
[EventCountry "SRB"]
[SourceTitle "playchess.com"]
[Source "ChessBase"]
[SourceQuality "1"]
[TimeControl "5400+30"]

{[%evp 10,53,40,32,39,30,34,35,27,32,33,32,37,33,47,35,50,46,53,20,11,6,12,10,34,25,52,50,56,46,61,58,85,70,131,129,116,133,125,77,148,140,207,215,239,240]} 1. e4 {[%emt 0:00:01]} e5 {[%emt 0:06:23]} 2. Nf3 {[%emt 0:00:15]} Nc6 {[%emt 0:00:07]} 3. Bb5 {[%emt 0:00:03]} a6 {[%emt 0:00:05]} 4. Ba4 {[%emt 0:00:04]} Bc5 {[%emt 0:00:05]} 5. c3 {[%emt 0:00:19]} Nge7 {[%emt 0:00:09]} 6. O-O {[%emt 0:00:18]} Ng6 {[%emt 0:00:12]} 7. d4 {[%emt 0:00:06]} Ba7 {[%emt 0:00:03]} 8. Bg5 {[%emt 0:00:11]} f6 {[%emt 0:00:04] White is slightly better.} 9. Be3 {[%emt 0:00:04]} O-O {[%emt 0:00:10]} 10. Nbd2 {[%emt 0:00:06]} d6 {[%emt 0:00:10]} 11. Re1 {[%emt 0:00:11]} Kh8 {[%emt 0:00:21]} 12. h3 {[%emt 0:00:18]} a5 {[%emt 0:00:50]} 13. Rc1 {[%emt 0:01:35]} Bd7 {[%emt 0:00:23]} 14. Nf1 {[%emt 0:00:32]} exd4 {[%emt 0:02:00]} 15. Nxd4 {[%emt 0:06:16]} Nxd4 {[%emt 0:00:17]} 16. Bxd4 {[%emt 0:05:34]} Bxd4 {[%emt 0:09:02]} 17. cxd4 {[%emt 0:12:35]} d5 {[%emt 0:00:35]} 18. Bxd7 {[%emt 0:05:06]} Qxd7 {[%emt 0:00:23]} 19. exd5 {[%emt 0:00:05]} Nf4 {[%emt 0:10:22]} 20. Ne3 {[%emt 0:04:07]} Rfc8 {[%emt 0:00:56]} 21. Rc3 {[%emt 0:01:21][%cal Bc1c3,Bc3c5,Bc5h5][%mdl 32] Strongly threatening Qf3.} Nxd5 {[%emt 0:02:20]} (21... Re8 $1 $14) 22. Nxd5 $16 {[%emt 0:00:15]} Qxd5 {[%emt 0:00:06]} 23. Re7 $36 {[%emt 0:00:05][%mdl 2048] Keeping Black busy.} Qd6 {[%emt 0:05:54]} 24. Qe2 {[%emt 0:00:07]} (24. Rf7 $142) 24... h6 {[%emt 0:02:27]} (24... c6 $142) 25. Qe4 {[%emt 0:02:56] White is more active. Black is weak on the light squares. White is clearly better.} Rab8 {[%emt 0:04:44]} (25... f5 $16 26. Qe5 (26. Qxf5 $2 {loses.} Qxe7 27. Qc2 Rf8 $19) 26... Qxe5 27. dxe5 f4) 26. Rc5 $18 {[%emt 0:00:14]} c6 {[%emt 0:01:44] [#]} 27. Rh5 $1 {[%emt 0:00:09] Weighted Error Value: White=0.06 (flawless) /Black=0.20 (precise) .  Mistake:       	White=1     	Black=3      Inaccurate:     	White=1     	Black=2      OK:         	White=10    	Black=6      Best:        	White=1     	Black=1      Strong:       	White=1     	---} ({Much less strong is} 27. Rxa5 $6 Rc7 28. Rxc7 Qxc7 $16) 1-0

[Event "RUDAR VI-GM 2024"]
[Site "Pozarevac"]
[Date "2024.02.12"]
[Round "5.2"]
[White "Sutormin, Danila"]
[Black "Zemlyanskii, Ivan"]
[Result "1/2-1/2"]
[ECO "B06"]
[WhiteElo "2353"]
[BlackElo "2492"]
[Annotator "TA"]
[PlyCount "37"]
[EventDate "2024.02.12"]
[EventType "tourn"]
[EventCountry "SRB"]
[SourceTitle "playchess.com"]
[Source "ChessBase"]
[SourceQuality "1"]
[TimeControl "5400+30"]

{[%evp 9,37,19,16,31,22,19,27,43,29,34,43,29,40,18,20,18,16,15,20,18,21,0,20,0,0,0,13,0,0,0]} 1. e4 {[%emt 0:00:35]} c5 {[%emt 0:00:02]} 2. c3 {[%emt 0:00:10]} d5 {[%emt 0:00:04]} 3. exd5 {[%emt 0:00:08]} Qxd5 {[%emt 0:00:04]} 4. d4 {[%emt 0:00:15]} g6 {[%emt 0:00:03]} 5. Nf3 {[%emt 0:00:19]} Bg7 {[%emt 0:00:12]} 6. Nbd2 {[%emt 0:00:22]} cxd4 {[%emt 0:00:33]} 7. Bc4 {[%emt 0:00:09]} Qd8 {[%emt 0:00:09]} 8. Nxd4 {[%emt 0:00:16] White has an edge.} Nf6 {[%emt 0:00:03]} 9. O-O {[%emt 0:00:18]} O-O {[%emt 0:00:04]} 10. N2f3 {[%emt 0:00:42]} Qc7 {[%emt 0:00:06] Dodges Ne5} 11. Qe2 {[%emt 0:01:18]} Bg4 {[%emt 0:00:13][%cal Oe7e5] The position is equal.} 12. h3 {[%emt 0:12:18]} Bxf3 {[%emt 0:00:04]} 13. Nxf3 {[%emt 0:00:04]} e6 {[%emt 0:00:13]} 14. Be3 {[%emt 0:05:45]} Nc6 {[%emt 0:00:32]} 15. a4 {[%emt 0:00:58]} Ne7 {[%emt 0:07:14]} 16. Bd4 {[%emt 0:03:28]} Nc6 {[%emt 0:02:46]} 17. Be3 {[%emt 0:03:40]} Ne7 {[%emt 0:02:40]} 18. Bd4 {[%emt 0:06:52]} Nc6 {[%emt 0:05:01]} 19. Be3 {[%emt 0:02:59] Weighted Error Value: White=0.07 (flawless) /Black=0.03 (flawless) .  OK:         	White=2     	Black=7      Best:        	White=1     	---} 1/2-1/2

[Event "RUDAR VI-GM 2024"]
[Site "Pozarevac"]
[Date "2024.02.12"]
[Round "5.3"]
[White "Velpula Sarayu"]
[Black "Apaar Saxena"]
[Result "1-0"]
[ECO "B45"]
[WhiteElo "2444"]
[BlackElo "2150"]
[Annotator "TA"]
[PlyCount "39"]
[EventDate "2024.02.12"]
[EventType "tourn"]
[EventCountry "SRB"]
[SourceTitle "playchess.com"]
[Source "ChessBase"]
[SourceQuality "1"]
[TimeControl "5400+30"]

{[%evp 17,39,13,34,0,16,26,4,8,32,4,46,46,291,271,2727,101,129,-302,895,-286,-294,-1265,318,273]} 1. e4 {[%emt 0:05:24]} c5 {[%emt 0:00:03]} 2. Nf3 {[%emt 0:00:27]} e6 {[%emt 0:00:03]} 3. d4 {[%emt 0:00:21]} cxd4 {[%emt 0:00:04]} 4. Nxd4 {[%emt 0:00:44]} Nf6 {[%emt 0:00:05][%cal Bg8f6,Bf6d5,Bd5e3][%mdl 32]} 5. Nc3 {[%emt 0:00:41]} Nc6 {[%emt 0:00:03]} 6. Nxc6 {[%emt 0:00:44]} bxc6 {[%emt 0:00:18]} 7. e5 {[%emt 0:00:30]} Nd5 {[%emt 0:00:22]} 8. Ne4 {[%emt 0:00:29]} Qc7 {[%emt 0:00:15]} 9. f4 {[%emt 0:00:42]} Qb6 {[%emt 0:00:09][%cal Od5f4]} 10. a3 {[%emt 0:01:41][%cal Ba2a3,Ba3b4][%mdl 32]} Ne3 {[%emt 0:10:19]} 11. Qd3 {[%emt 0:00:17]} Nxf1 {[%emt 0:00:16]} 12. Rxf1 {[%emt 0:00:10] The position is equal.} Be7 {[%emt 0:10:29]} 13. Be3 {[%emt 0:12:15]} Qa5+ {[%emt 0:03:44] Black is weak on the dark squares} 14. b4 {[%emt 0:12:18]} Bxb4+ {[%emt 0:04:12]} ({Better is} 14... Qd5 $1 $14) 15. axb4 $18 {[%emt 0:01:08]} Qa4 {[%emt 1:07:38] [#]} (15... Qxa1+ 16. Kf2 Qa2) 16. Ra2 $2 Qxa2 $16 {[%emt 0:00:00]} 17. Kf2 $2 {[%emt 0:01:30][%mdl 8192] Active counter play!} (17. Nd6+ $16 {is forced if you want to stay better.} Kd8 18. b5 (18. Nxf7+ Ke8 $18)) 17... Kf8 $4 {[%emt 0:00:00][%mdl 8192]} (17... Ba6 $19 18. b5 Bxb5 (18... cxb5 19. Nd6+ Kf8 20. Qc3 $11) 19. Nd6+ Kf8 20. Nxb5 cxb5) 18. Nd6 $4 {[%emt 0:08:21][%mdl 8192]} (18. Bc5+ $18 {was the only winning move.} Ke8 19. Nd6+ Kd8 20. Nxf7+ Kc7 21. Nxh8) 18... Ba6 $19 {[%emt 0:00:00]} 19. Kg1 $2 {[%emt 0:00:15]} (19. b5 Bxb5 20. Nxb5 cxb5 21. Qxb5) 19... g6 $4 {[%emt 0:00:00][%mdl 8192] [#]} (19... Bxd3 $19 {avoids the disaster.} 20. cxd3 a5 21. bxa5 Qxa5) 20. c4 {[%emt 0:08:00] Weighted Error Value: White=2.09/Black=1.13.  Loses game:     	---       	Black=1      Missed win:     	White=2     	Black=2      Mistake:       	---       	Black=1      Inaccurate:     	White=1     	Black=1      OK:         	White=1     	Black=1      Best:        	White=1     	Black=2} 1-0

[Event "RUDAR VI-GM 2024"]
[Site "Pozarevac"]
[Date "2024.02.12"]
[Round "5.4"]
[White "Volkov, Dmitriy"]
[Black "Ahmadzada, Ahmad"]
[Result "0-1"]
[ECO "B56"]
[WhiteElo "2268"]
[BlackElo "2501"]
[Annotator "TA"]
[PlyCount "68"]
[EventDate "2024.02.12"]
[EventType "tourn"]
[EventCountry "SRB"]
[SourceTitle "playchess.com"]
[Source "ChessBase"]
[SourceQuality "1"]
[TimeControl "5400+30"]

{[%evp 14,68,26,16,22,8,12,13,11,12,21,0,0,-13,-20,-47,-37,-72,-78,-83,-83,-74,-80,-96,-86,-124,-114,-151,-116,-133,-131,-154,-135,-474,-480,-452,-453,-543,-535,-926,-924,-893,-883,-985,-1018,-1080,-1056,-1044,-1044,-2669,-2750,-29984,-29985,-29987,-29988,-29997,-29998]} 1. e4 {[%emt 0:00:03]} c5 {[%emt 0:01:13]} 2. Nf3 {[%emt 0:00:06]} d6 {[%emt 0:00:06]} 3. d4 {[%emt 0:00:07]} cxd4 {[%emt 0:00:06]} 4. Nxd4 {[%emt 0:00:03]} Nf6 {[%emt 0:00:07]} 5. Nc3 {[%emt 0:00:03]} Nc6 {[%emt 0:00:08]} 6. f3 {[%emt 0:00:09]} e5 {[%emt 0:00:49]} 7. Nb3 {[%emt 0:00:05]} Be6 {[%emt 0:00:13]} 8. Nd5 {[%emt 0:00:36]} Be7 {[%emt 0:00:21]} 9. c4 {[%emt 0:00:28]} a5 {[%emt 0:03:35][%cal Ba7a5,Ba5a4][%mdl 32]} 10. Be3 {[%emt 0:00:28]} Nd7 {[%emt 0:01:03] Prevents Bb6. The position is equal.} 11. Bd3 {[%emt 0:17:53]} a4 {[%emt 0:02:37]} 12. Nxe7 {[%emt 0:01:00]} Qxe7 {[%emt 0:01:47]} 13. Nc1 {[%emt 0:00:10]} O-O {[%emt 0:04:57]} 14. Ne2 {[%emt 0:03:39]} Nc5 {[%emt 0:08:24]} 15. Rc1 {[%emt 0:02:16]} Rfc8 {[%emt 0:07:00] Black is more active.} 16. O-O {[%emt 0:04:29]} Na5 {[%emt 0:02:26]} 17. Bxc5 {[%emt 0:04:34]} dxc5 {[%emt 0:00:32]} 18. Qc2 {[%emt 0:17:53][%cal Of3f4] [#]} b5 $1 {[%emt 0:03:12]} 19. b3 {[%emt 0:00:20]} (19. cxb5 $2 {is the wrong capture.} c4 (19... Bxa2 20. Nc3 $15) 20. Rfd1 Qc5+ (20... cxd3 $2 21. Qxd3 Rxc1 22. Rxc1 $19) 21. Kh1 Qxb5 $19) (19. Nc3 Nxc4) 19... b4 {[%emt 0:09:25]} 20. f4 {[%emt 0:02:21]} f6 {[%emt 0:01:21]} 21. f5 {[%emt 0:02:53]} Bf7 {[%emt 0:01:39]} 22. Qb1 {[%emt 0:04:58]} Rd8 {[%emt 0:03:37] Hoping for ...axb3.} 23. g4 $2 {[%emt 0:01:24][%mdl 8192]} (23. Bc2 $17) 23... axb3 $19 {[%emt 0:00:23]} 24. axb3 {[%emt 0:00:07] [#]} Nxb3 $1 {[%emt 0:00:15][%mdl 512]} 25. Qxb3 {[%emt 0:03:25]} (25. Rcd1 Ra3) 25... Ra3 {[%emt 0:00:06]} 26. Bc2 {[%emt 0:03:43]} Rxb3 {[%emt 0:00:17]} 27. Bxb3 {[%emt 0:00:05]} Rd3 {[%emt 0:00:28]} 28. Ba4 {[%emt 0:00:11]} Qd6 {[%emt 0:01:32]} 29. Rfd1 {[%emt 0:00:34] [#]} Bxc4 $1 {[%emt 0:00:40][%mdl 512]} 30. Rxc4 {[%emt 0:09:36]} Rxd1+ {[%emt 0:00:08]} 31. Kf2 {[%emt 0:00:11]} Rd2 {[%emt 0:00:23] ( -> ...Qd3)} 32. Bb3 {[%emt 0:00:55]} Kf8 {[%emt 0:00:06] Black mates.} 33. Rc1 {[%emt 0:00:50]} Qd3 {[%emt 0:00:06]} 34. Bc4 {[%emt 0:00:26]} Rxe2+ {[%emt 0:00:05] White did not feel at home in the position after the opening.   Weighted Error Value: White=0.99/Black=0.02 (flawless) .  Loses game:     	White=1     	---        Inaccurate:     	White=5     	---        OK:         	White=4     	Black=10     Best:        	---       	Black=2      Brilliant:      	---       	Black=1} 0-1

[Event "RUDAR VI-GM 2024"]
[Site "Pozarevac"]
[Date "2024.02.12"]
[Round "5.5"]
[White "Kotronias, Vasilios"]
[Black "Garifullina, Leya"]
[Result "1-0"]
[ECO "C83"]
[WhiteElo "2453"]
[BlackElo "2422"]
[Annotator "RC"]
[PlyCount "81"]
[EventDate "2024.02.12"]
[EventType "tourn"]
[EventCountry "SRB"]
[SourceTitle "playchess.com"]
[Source "ChessBase"]
[SourceQuality "1"]
[TimeControl "5400+30"]

1. e4 {[%emt 0:04:30]} e5 {[%emt 0:00:11]} 2. Nf3 {[%emt 0:00:14]} Nc6 {[%emt 0:00:06]} 3. Bb5 {[%emt 0:00:18]} a6 {[%emt 0:00:05]} 4. Ba4 {[%emt 0:00:04]} Nf6 {[%emt 0:00:07]} 5. O-O {[%emt 0:00:07]} Nxe4 {[%emt 0:00:04]} 6. d4 {[%emt 0:00:07]} b5 {[%emt 0:00:06]} 7. Bb3 {[%emt 0:00:04]} d5 {[%emt 0:00:05]} 8. dxe5 {[%emt 0:00:06]} Be6 {[%emt 0:00:03]} 9. Nbd2 {[%emt 0:00:08]} Be7 {[%emt 0:00:09]} 10. c3 {[%emt 0:00:33]} O-O {[%emt 0:00:08]} 11. Bc2 {[%emt 0:04:15]} f5 {[%emt 0:00:06]} 12. exf6 {[%emt 0:00:12]} Nxf6 {[%emt 0:00:06]} 13. Re1 {[%emt 0:04:23]} Bg4 {[%emt 0:00:45]} 14. h3 {[%emt 0:01:16]} Bh5 {[%emt 0:00:05]} 15. a4 {[%emt 0:28:30]} b4 {[%emt 0:00:06]} 16. Bf5 {[%emt 0:53:43]} Bd6 {[%emt 0:13:35]} 17. g4 {[%emt 0:00:00]} Bg6 {[%emt 0:05:02]} 18. Bxg6 {[%emt 0:00:00]} hxg6 {[%emt 0:00:03]} 19. Ng5 {[%emt 0:00:00]} Re8 {[%emt 0:10:36]} 20. Rxe8+ {[%emt 0:00:00]} Qxe8 {[%emt 0:00:33]} 21. Ndf3 {[%emt 0:00:00]} bxc3 {[%emt 0:01:05]} 22. bxc3 {[%emt 0:00:00]} Ne5 {[%emt 0:00:58]} 23. Bf4 {[%emt 0:00:00]} Nxf3+ {[%emt 0:01:51]} 24. Qxf3 {[%emt 0:00:00]} Bxf4 {[%emt 0:00:12]} 25. Qxf4 {[%emt 0:00:00]} Qc6 {[%emt 0:00:12]} 26. Re1 {[%emt 0:00:00]} Qd7 {[%emt 0:11:18]} 27. Qd4 {[%emt 0:00:00]} Nh7 {[%emt 0:05:13]} 28. Re5 {[%emt 0:00:00]} c6 {[%emt 0:00:19]} 29. Qd3 {[%emt 0:00:00]} Nf8 {[%emt 0:01:27]} 30. Qe3 {[%emt 0:00:00]} Qd6 {[%emt 0:01:32]} 31. Re7 {[%emt 0:00:00]} Rd8 {[%emt 0:03:42]} 32. Nf7 {[%emt 0:00:00]} Qxe7 {[%emt 0:05:09]} 33. Qxe7 {[%emt 0:00:00]} Rd7 {[%emt 0:00:03]} 34. Qc5 {[%emt 0:00:00]} Rxf7 {[%emt 0:00:53]} 35. Qxc6 {[%emt 0:00:00]} Rf6 {[%emt 0:00:03]} 36. Qxd5+ {[%emt 0:00:00]} Kh7 {[%emt 0:00:02]} 37. c4 {[%emt 0:00:00]} Re6 {[%emt 0:43:00]} 38. Kf1 {[%emt 0:00:00]} Rb6 {[%emt 0:00:00]} 39. c5 {[%emt 0:00:00]} Rb1+ {[%emt 0:00:00]} 40. Ke2 {[%emt 0:00:00]} Rb2+ {[%emt 0:00:00]} 41. Ke3 {[%emt 0:00:00]} 1-0

[Event "RUDAR VI-GM 2024"]
[Site "Pozarevac"]
[Date "2024.02.12"]
[Round "6.1"]
[White "Krishna Teja, N."]
[Black "Garifullina, Leya"]
[Result "1-0"]
[ECO "C56"]
[WhiteElo "2349"]
[BlackElo "2422"]
[Annotator "RC"]
[PlyCount "77"]
[EventDate "2024.02.12"]
[EventType "tourn"]
[EventCountry "SRB"]
[SourceTitle "playchess.com"]
[Source "ChessBase"]
[SourceQuality "1"]
[TimeControl "5400+30"]

1. e4 {[%emt 0:15:39]} e5 {[%emt 0:00:07]} 2. Bc4 {[%emt 0:01:09]} Nf6 {[%emt 0:00:08]} 3. d4 {[%emt 0:00:15]} exd4 {[%emt 0:11:50]} 4. Nf3 {[%emt 0:00:16]} Nc6 {[%emt 0:02:07]} 5. O-O {[%emt 0:00:07]} Bc5 {[%emt 0:02:53]} 6. e5 {[%emt 0:00:52]} d5 {[%emt 0:01:00]} 7. exf6 {[%emt 0:00:52]} dxc4 {[%emt 0:00:06]} 8. Re1+ {[%emt 0:05:38]} Kf8 {[%emt 0:24:59]} 9. Bg5 {[%emt 0:01:15]} gxf6 {[%emt 0:06:59]} 10. Bh6+ {[%emt 0:00:25]} Kg8 {[%emt 0:00:04]} 11. Nc3 {[%emt 0:20:32]} Bf8 {[%emt 0:03:16]} 12. Bxf8 {[%emt 0:04:01]} Kxf8 {[%emt 0:00:14]} 13. Ne4 {[%emt 0:01:38]} Bf5 {[%emt 0:02:21]} 14. Qd2 {[%emt 0:00:52]} Kg7 {[%emt 0:00:29]} 15. Nh4 {[%emt 0:16:24]} Bg6 {[%emt 0:01:13]} 16. Ng3 {[%emt 0:01:13]} Qd5 {[%emt 0:01:52]} 17. Nhf5+ {[%emt 0:01:39]} Qxf5 {[%emt 0:02:51]} 18. Nxf5+ {[%emt 0:00:07]} Bxf5 {[%emt 0:00:01]} 19. c3 {[%emt 0:02:53]} Rhd8 {[%emt 0:15:36]} 20. Qf4 {[%emt 0:01:01]} Bc2 {[%emt 0:03:07]} 21. cxd4 {[%emt 0:00:29]} Nxd4 {[%emt 0:00:16]} 22. Qxc7 {[%emt 0:00:55]} Bg6 {[%emt 0:02:33]} 23. Rad1 {[%emt 0:02:06]} b5 {[%emt 0:01:21]} 24. h4 {[%emt 0:02:38]} Bc2 {[%emt 0:02:14]} 25. Ra1 {[%emt 0:01:30]} Bg6 {[%emt 0:00:50]} 26. Re7 {[%emt 0:01:40]} Rac8 {[%emt 0:01:45]} 27. Qf4 {[%emt 0:01:13]} b4 {[%emt 0:02:14]} 28. g4 {[%emt 0:03:45]} h5 {[%emt 0:01:09]} 29. g5 {[%emt 0:00:46]} fxg5 {[%emt 0:00:38]} 30. hxg5 {[%emt 0:00:27]} c3 {[%emt 0:00:51]} 31. bxc3 {[%emt 0:00:37]} bxc3 {[%emt 0:00:02]} 32. Rae1 {[%emt 0:05:28]} c2 {[%emt 0:00:19]} 33. Kg2 {[%emt 0:02:11]} Nf5 {[%emt 0:01:18]} 34. Rc7 {[%emt 0:02:12]} Rxc7 {[%emt 0:02:33]} 35. Qxc7 {[%emt 0:00:22]} Rd1 {[%emt 0:00:43]} 36. Re8 {[%emt 0:01:51]} Kh7 {[%emt 0:06:50]} 37. Qc8 {[%emt 0:02:17]} Ne3+ {[%emt 0:00:42]} 38. Kf3 {[%emt 0:00:54]} Be4+ {[%emt 0:01:59]} 39. Kxe4 {[%emt 0:01:51]} 1-0

[Event "RUDAR VI-GM 2024"]
[Site "Pozarevac"]
[Date "2024.02.12"]
[Round "6.2"]
[White "Ahmadzada, Ahmad"]
[Black "Kotronias, Vasilios"]
[Result "1-0"]
[ECO "B82"]
[WhiteElo "2501"]
[BlackElo "2453"]
[Annotator "RC"]
[PlyCount "67"]
[EventDate "2024.02.12"]
[EventType "tourn"]
[EventCountry "SRB"]
[SourceTitle "playchess.com"]
[Source "ChessBase"]
[SourceQuality "1"]
[TimeControl "5400+30"]

1. e4 {[%emt 0:05:21]} c5 {[%emt 0:00:05]} 2. Nf3 {[%emt 0:00:05]} d6 {[%emt 0:00:07]} 3. d4 {[%emt 0:00:14]} cxd4 {[%emt 0:00:04]} 4. Nxd4 {[%emt 0:00:05]} Nf6 {[%emt 0:00:02]} 5. Nc3 {[%emt 0:00:07]} Nc6 {[%emt 0:00:04]} 6. Bc4 {[%emt 0:00:20]} Qb6 {[%emt 0:00:06]} 7. Nb3 {[%emt 0:01:13]} e6 {[%emt 0:00:07]} 8. Be3 {[%emt 0:00:07]} Qc7 {[%emt 0:00:05]} 9. f4 {[%emt 0:00:06]} a6 {[%emt 0:00:35]} 10. Bd3 {[%emt 0:00:10]} b5 {[%emt 0:01:12]} 11. g4 {[%emt 0:00:09]} d5 {[%emt 0:12:06]} 12. g5 {[%emt 0:18:31]} Nxe4 {[%emt 0:02:02]} 13. Nxe4 {[%emt 0:00:07]} dxe4 {[%emt 0:00:04]} 14. Bxe4 {[%emt 0:00:06]} Bb7 {[%emt 0:00:17]} 15. Qf3 {[%emt 0:05:19]} O-O-O {[%emt 0:01:07]} 16. a4 {[%emt 0:12:44]} f5 {[%emt 0:08:10]} 17. gxf6 {[%emt 0:00:41]} gxf6 {[%emt 0:00:18]} 18. axb5 {[%emt 0:04:47]} axb5 {[%emt 0:00:02]} 19. Qf2 {[%emt 0:08:00]} Na5 {[%emt 0:14:41]} 20. Qf3 {[%emt 0:05:39]} Nc6 {[%emt 0:08:24]} 21. f5 {[%emt 0:04:32]} Be7 {[%emt 0:09:08]} 22. c3 {[%emt 0:07:08]} Rhg8 {[%emt 0:03:26]} 23. Nd4 {[%emt 0:04:22]} Nxd4 {[%emt 0:02:48]} 24. Bxd4 {[%emt 0:00:42]} Rd5 {[%emt 0:19:15]} 25. Bxd5 {[%emt 0:00:14]} exd5 {[%emt 0:00:03]} 26. O-O-O {[%emt 0:02:25]} Bd6 {[%emt 0:02:45]} 27. Kb1 {[%emt 0:01:32]} Bc6 {[%emt 0:04:48]} 28. Rde1 {[%emt 0:02:01]} Kb7 {[%emt 0:00:08]} 29. Re6 {[%emt 0:02:00]} Be5 {[%emt 0:02:00]} 30. Re1 {[%emt 0:01:01]} b4 {[%emt 0:02:47]} 31. cxb4 {[%emt 0:01:10]} Bxd4 {[%emt 0:02:26]} 32. b5 {[%emt 0:00:07]} Bd7 {[%emt 0:03:32]} 33. Qxd5+ {[%emt 0:00:36]} Kb8 {[%emt 0:00:08]} 34. Ra6 {[%emt 0:02:09]} 1-0